bitfinex/quotes_BTCUSD_20250211
["timestamp","ask_amount","ask_price","bid_price","bid_amount"]
[1739255953654,0.00054828,98471.0,98470.0,0.02684073]
[1739255954076,0.15287728,98471.0,98470.0,0.02684073]
[1739255954783,0.00054828,98471.0,98470.0,0.02684073]
[1739255955738,0.00054828,98471.0,98470.0,0.01923065]
[1739255958363,0.15287728,98471.0,98470.0,0.01923065]
[1739255959491,0.15287728,98471.0,98470.0,0.00022386]
[1739255961506,0.16283916,98471.0,98470.0,0.00022386]
[1739255964161,0.01051016,98471.0,98470.0,0.00022386]
[1739255968485,0.16283916,98471.0,98470.0,0.00022386]
[1739255969077,0.01051016,98471.0,98470.0,0.00022386]
[1739255969277,0.00054828,98471.0,98470.0,0.00022386]
[1739255969855,0.15287728,98471.0,98470.0,0.00022386]
[1739255971483,0.00054828,98471.0,98470.0,0.00022386]
[1739255972520,0.15287728,98471.0,98470.0,0.00022386]
[1739255974873,0.00054828,98471.0,98470.0,0.00022386]
[1739255976556,0.00500495,98471.0,98470.0,0.00022386]
[1739255978720,0.15733395,98471.0,98470.0,0.00022386]
[1739255980819,0.00500495,98471.0,98470.0,0.00022386]
[1739255981643,0.00500495,98471.0,98470.0,0.15255386]
[1739255981864,0.00500495,98471.0,98470.0,0.00022386]
[1739255982093,0.00054828,98471.0,98470.0,0.00783459]
[1739255982466,0.00502363,98471.0,98470.0,0.00783459]
[1739255986659,0.00502363,98471.0,98470.0,0.00022386]
[1739255991666,0.01519952,98471.0,98470.0,0.00022386]
[1739255992244,0.00502363,98471.0,98470.0,0.00022386]
[1739256008583,0.15735263,98471.0,98470.0,0.00022386]
[1739256008788,0.00502363,98471.0,98470.0,0.00022386]
[1739256009642,0.15735263,98471.0,98470.0,0.00022386]
[1739256009853,0.20245263,98471.0,98470.0,0.00022386]
[1739256012873,0.21251169,98471.0,98470.0,0.00022386]
[1739256020431,0.54361534,98471.0,98470.0,0.00022386]
[1739256021007,0.53913999,98471.0,98470.0,0.00022386]
[1739256021215,0.62859649,98471.0,98470.0,0.00022386]
[1739256021626,0.62859649,98471.0,98470.0,0.00122386]
[1739256024891,0.53913999,98471.0,98470.0,0.00122386]
[1739256033622,0.53913999,98471.0,98470.0,0.00022386]
[1739256033856,0.53913999,98471.0,98470.0,0.00122386]
[1739256034256,0.54113999,98471.0,98470.0,0.00122386]
[1739256039505,0.46253999,98471.0,98470.0,0.00122386]
[1739256039708,0.41743999,98471.0,98470.0,0.00122386]
[1739256040648,0.50322449,98471.0,98470.0,0.00122386]
[1739256043784,0.41743999,98471.0,98470.0,0.00122386]
[1739256044203,0.41595999,98471.0,98470.0,0.00122386]
[1739256046343,0.41606659,98471.0,98470.0,0.00122386]
[1739256047559,0.54376659,98471.0,98470.0,0.00122386]
[1739256047760,0.57432649,98471.0,98470.0,0.00122386]
[1739256048135,0.66904964,98471.0,98470.0,0.00122386]
[1739256053003,0.57432649,98471.0,98470.0,0.00122386]
[1739256055597,0.47432649,98471.0,98470.0,0.00122386]
[1739256055798,0.42292921,98471.0,98470.0,0.00122386]
[1739256056141,0.43040921,98471.0,98470.0,0.00122386]
[1739256056923,0.58273821,98471.0,98470.0,0.00122386]
[1739256058782,0.67755453,98471.0,98470.0,0.00122386]
[1739256060009,0.58273821,98471.0,98470.0,8.6e-07]
[1739256061112,0.302341,98463.0,98462.0,0.00022386]
[1739256062267,0.317341,98463.0,98462.0,0.00122386]
[1739256062700,0.319341,98463.0,98462.0,0.00222386]
[1739256063961,0.34014684,98463.0,98462.0,0.00222386]
[1739256065841,0.37066025,98463.0,98462.0,0.00222386]
[1739256071693,0.34014684,98463.0,98462.0,0.00222386]
[1739256072322,0.37063961,98463.0,98462.0,0.00222386]
[1739256072711,0.34014684,98463.0,98462.0,0.00222386]
[1739256074938,0.319341,98463.0,98462.0,0.00222386]
[1739256076382,0.34981447,98463.0,98462.0,0.00222386]
[1739256077467,0.34981387,98463.0,98462.0,0.00222386]
[1739256078107,0.44780393,98463.0,98462.0,0.00222386]
[1739256078928,0.34981387,98463.0,98462.0,0.00222386]
[1739256104445,0.33981387,98463.0,98462.0,0.00222386]
[1739256117094,0.33992047,98463.0,98462.0,0.00222386]
[1739256137334,0.3094476,98463.0,98462.0,0.00222386]
[1739256138633,0.2944476,98463.0,98462.0,0.00122386]
[1739256138809,0.3074476,98463.0,98462.0,0.00122386]
[1739256139152,0.3144476,98463.0,98462.0,0.00222386]
[1739256139377,0.2924476,98463.0,98462.0,0.00022386]
[1739256139576,0.3074476,98463.0,98462.0,0.00222386]
[1739256139803,0.3144476,98463.0,98462.0,0.00222386]
[1739256140341,0.2994476,98463.0,98462.0,0.00122386]
[1739256140470,0.2924476,98463.0,98462.0,0.00022386]
[1739256140882,0.2994476,98463.0,98462.0,0.00122386]
[1739256141743,0.3144476,98463.0,98462.0,0.00222386]
[1739256142235,0.3074476,98463.0,98462.0,0.00122386]
[1739256142697,0.3144476,98463.0,98462.0,0.00222386]
[1739256142834,0.3144476,98463.0,98462.0,0.00122386]
[1739256143241,0.3214476,98463.0,98462.0,0.00222386]
[1739256159446,0.2924476,98463.0,98462.0,0.00022386]
[1739256159667,0.2924476,98463.0,98462.0,0.00122386]
[1739256159849,0.3084476,98463.0,98462.0,0.00122386]
[1739256164129,0.3129692,98463.0,98462.0,0.00122386]
[1739256164897,0.32327275,98463.0,98462.0,0.00122386]
[1739256179301,0.31875115,98463.0,98462.0,0.00122386]
[1739256199582,0.1584476,98463.0,98462.0,0.00122386]
[1739256201699,0.0161066,98463.0,98462.0,0.07942386]
[1739256202121,0.1684476,98463.0,98462.0,0.07942386]
[1739256202329,0.0161066,98463.0,98462.0,0.00122386]
[1739256202535,0.0121066,98463.0,98462.0,0.00122386]
[1739256202739,0.0001066,98463.0,98462.0,0.00022386]
[1739256202946,0.1694476,98463.0,98462.0,0.00122386]
[1739256203153,0.0171066,98463.0,98462.0,0.00122386]
[1739256203391,0.0051066,98463.0,98462.0,0.00022386]
[1739256203599,0.0101066,98463.0,98462.0,0.00022386]
[1739256203806,0.0151066,98463.0,98462.0,0.00122386]
[1739256204413,0.1674476,98463.0,98462.0,0.00122386]
[1739256205382,0.1524476,98463.0,98462.0,0.00022386]
[1739256205606,0.1574476,98463.0,98462.0,0.00122386]
[1739256205811,0.1594476,98463.0,98462.0,0.00122386]
[1739256206371,0.1564476,98463.0,98462.0,0.00022386]
[1739256206590,0.1564476,98463.0,98462.0,0.00122386]
[1739256206799,0.1644476,98463.0,98462.0,0.00122386]
[1739256207289,0.1564476,98463.0,98462.0,0.00022386]
[1739256208775,0.17177394,98463.0,98462.0,0.00122386]
[1739256209164,0.16777394,98463.0,98462.0,0.00122386]
[1739256209318,0.16277394,98463.0,98462.0,0.00022386]
[1739256209522,0.16477394,98463.0,98462.0,0.00022386]
[1739256209838,0.16977394,98463.0,98462.0,0.00122386]
[1739256214220,0.1594476,98463.0,98462.0,0.00122386]
[1739256228276,0.0071066,98463.0,98462.0,0.00122386]
[1739256228558,0.1594476,98463.0,98462.0,0.00122386]
[1739256233552,0.0071066,98463.0,98462.0,0.00122386]
[1739256234924,0.1594476,98463.0,98462.0,0.00122386]
[1739256238690,0.0071066,98463.0,98462.0,0.15356686]
[1739256240473,0.0071066,98463.0,98462.0,0.16119004]
[1739256242436,0.0071066,98463.0,98462.0,0.00884704]
[1739256243653,0.0071066,98463.0,98462.0,0.16119004]
[1739256244056,0.0071066,98463.0,98462.0,0.00884704]
[1739256244944,0.0071066,98463.0,98462.0,0.00122386]
[1739256249668,0.0071066,98463.0,98462.0,0.15356686]
[1739256250084,0.0071066,98463.0,98462.0,0.00122386]
[1739256250550,0.0071066,98463.0,98462.0,0.00884312]
[1739256251715,0.0071066,98463.0,98462.0,0.16118612]
[1739256254829,0.0071066,98463.0,98462.0,0.00884312]
[1739256257584,0.0071066,98463.0,98462.0,0.16118612]
[1739256260157,0.0071066,98463.0,98462.0,0.00884312]
[1739256261131,0.0071066,98463.0,98462.0,0.16118612]
[1739256261319,0.0071066,98463.0,98462.0,0.33868977]
[1739256261685,0.0071066,98463.0,98462.0,0.26368977]
[1739256262394,0.0051066,98463.0,98462.0,0.26368977]
[1739256262562,0.0051066,98463.0,98462.0,0.26468977]
[1739256262747,0.0001066,98463.0,98462.0,0.26368977]
[1739256263692,0.0001066,98463.0,98462.0,0.26468977]
[1739256264846,0.0001066,98463.0,98462.0,0.58628977]
[1739256269718,0.0001066,98463.0,98462.0,0.60532922]
[1739256290260,0.0001066,98463.0,98462.0,0.62832922]
[1739256302533,0.0001066,98463.0,98462.0,0.63785651]
[1739256302894,0.0001066,98463.0,98462.0,0.65005128]
[1739256303098,0.0001066,98463.0,98462.0,0.64905128]
[1739256303325,0.0001066,98463.0,98462.0,0.64805128]
[1739256303552,0.0001066,98463.0,98462.0,0.64905128]
[1739256303866,0.0001066,98463.0,98462.0,0.65005128]
[1739256304085,0.0001066,98463.0,98462.0,0.64905128]
[1739256304257,0.0001066,98463.0,98462.0,0.65305128]
[1739256305412,0.0001066,98463.0,98462.0,0.65505128]
[1739256305613,0.0001066,98463.0,98462.0,0.65205128]
[1739256305818,0.0001066,98463.0,98462.0,0.64805128]
[1739256306031,0.0001066,98463.0,98462.0,0.65705128]
[1739256306241,0.0011066,98463.0,98462.0,0.65705128]
[1739256307024,0.0011066,98463.0,98462.0,0.73495128]
[1739256307440,0.18910366,98581.0,98477.0,0.152319]
[1739256307441,0.203066,98490.0,98477.0,0.152319]
[1739256307642,0.07948073,98488.0,98475.0,0.06377487]
[1739256307795,0.152306,98486.0,98477.0,0.152318]
[1739256308003,0.07948073,98488.0,98478.0,0.152317]
[1739256308208,0.152309,98484.0,98476.0,0.15232]
[1739256308417,0.07948073,98488.0,98476.0,0.00952729]
[1739256308621,0.07948073,98488.0,98478.0,0.12754974]
[1739256308824,0.23178373,98488.0,98478.0,0.06377487]
[1739256309056,0.24678373,98488.0,98478.0,0.21609287]
[1739256309261,0.09148073,98488.0,98478.0,0.06377487]
[1739256309533,0.09148073,98488.0,98479.0,0.152316]
[1739256309676,0.08248073,98488.0,98479.0,0.152316]
[1739256309883,0.09048073,98488.0,98479.0,0.16946255]
[1739256310086,0.09348073,98488.0,98479.0,0.16946255]
[1739256310539,0.0479,98487.0,98480.0,0.01903945]
[1739256311303,0.0479,98487.0,98480.0,0.17897271]
[1739256311774,0.0479,98487.0,98481.0,0.01903945]
[1739256311939,0.0479,98487.0,98481.0,0.02856674]
[1739256312346,0.0579,98487.0,98481.0,0.02856674]
[1739256312969,0.0509,98487.0,98482.0,0.02665871]
[1739256313176,0.0609,98487.0,98482.0,0.036186]
[1739256313381,0.013,98487.0,98486.0,0.152305]
[1739256313557,0.013,98487.0,98484.0,0.152308]
[1739256313784,0.013,98487.0,98482.0,0.036186]
[1739256313936,0.003,98487.0,98486.0,0.01903945]
[1739256314140,8.073e-05,98488.0,98486.0,0.01903945]
[1739256314349,8.073e-05,98488.0,98487.0,0.152304]
[1739256314741,8.073e-05,98488.0,98487.0,0.15331927]
[1739256314940,8.073e-05,98488.0,98487.0,0.25582292]
[1739256315239,8.073e-05,98488.0,98487.0,0.26242691]
[1739256315589,8.073e-05,98488.0,98487.0,0.60306636]
[1739256316007,8.073e-05,98488.0,98487.0,0.28146636]
[1739256316225,8.073e-05,98488.0,98487.0,0.81556636]
[1739256316438,8.073e-05,98488.0,98487.0,0.91746636]
[1739256316689,8.073e-05,98488.0,98487.0,0.93917081]
[1739256316889,8.073e-05,98488.0,98487.0,0.93817081]
[1739256317092,0.00508073,98488.0,98487.0,0.94017081]
[1739256317603,0.00508073,98488.0,98487.0,0.98437081]
[1739256317837,0.07676257,98517.0,98513.0,0.152264]
[1739256318059,8.071e-05,98517.0,98507.0,0.06377487]
[1739256318245,8.071e-05,98517.0,98516.0,0.152259]
[1739256318444,8.071e-05,98517.0,98514.0,0.152261]
[1739256318672,8.071e-05,98517.0,98515.0,0.15226]
[1739256319425,0.00208071,98517.0,98515.0,0.15226]
[1739256319875,0.00208071,98517.0,98516.0,0.01903945]
[1739256320026,0.00808071,98517.0,98516.0,0.01903945]
[1739256320441,0.01008071,98517.0,98516.0,0.01903945]
[1739256321071,0.01008071,98517.0,98515.0,0.001]
[1739256321270,0.00208071,98517.0,98511.0,0.203021]
[1739256321474,0.00208071,98517.0,98511.0,0.30552465]
[1739256321687,0.00508071,98517.0,98514.0,0.152262]
[1739256321888,0.00508071,98517.0,98515.0,0.15226]
[1739256322098,0.00208071,98517.0,98515.0,0.15226]
[1739256322415,0.00208071,98517.0,98513.0,0.152263]
[1739256322590,0.00908071,98517.0,98512.0,0.20302]
[1739256322728,0.00908071,98517.0,98515.0,0.15226]
[1739256322950,0.00208071,98517.0,98515.0,0.15226]
[1739256323130,0.00408071,98517.0,98515.0,0.15226]
[1739256323342,0.0765,98516.0,98490.0,0.06377487]
[1739256323550,0.152287,98499.0,98490.0,0.06377487]
[1739256323764,0.0492,98507.0,98490.0,0.06377487]
[1739256323765,0.203035,98505.0,98490.0,0.06377487]
[1739256323969,0.0492,98507.0,98499.0,0.152284]
[1739256324169,0.152276,98505.0,98495.0,0.06377487]
[1739256324368,0.252231,98507.0,98496.0,0.10250365]
[1739256324827,0.152276,98505.0,98497.0,0.152288]
[1739256325004,0.201474,98507.0,98496.0,0.10250365]
[1739256325211,0.201474,98507.0,98499.0,0.152285]
[1739256325772,0.206474,98507.0,98499.0,0.152285]
[1739256325974,0.208474,98507.0,98499.0,0.152285]
[1739256326199,0.152275,98506.0,98499.0,0.152285]
[1739256326405,0.0492,98507.0,98497.0,0.203051]
[1739256326624,0.0562,98507.0,98497.0,0.203051]
[1739256327441,0.208474,98507.0,98500.0,0.152283]
[1739256327924,0.208474,98507.0,98497.0,0.203051]
[1739256328172,0.0492,98507.0,98499.0,0.203047]
[1739256328371,0.0492,98507.0,98500.0,0.203045]
[1739256328566,0.003,98506.0,98501.0,0.152281]
[1739256328910,0.0512,98507.0,98501.0,0.152281]
[1739256328911,0.002,98507.0,98505.0,0.152276]
[1739256329086,0.004,98507.0,98506.0,0.12550365]
[1739256329534,0.008,98507.0,98506.0,0.12651866]
[1739256329734,0.004,98507.0,98506.0,0.12550365]
[1739256329933,0.00018731,98517.0,98506.0,0.12550365]
[1739256330149,0.00018731,98517.0,98510.0,0.152267]
[1739256330411,0.00018731,98517.0,98508.0,0.226028]
[1739256330564,0.00018731,98517.0,98506.0,0.001]
[1739256330768,0.152272,98508.0,98506.0,0.001]
[1739256331042,0.0454,98507.0,98506.0,0.001]
[1739256331413,0.0454,98507.0,98489.0,0.023]
[1739256331614,0.152284,98501.0,98490.0,0.36934352]
[1739256331779,0.248433,98507.0,98490.0,0.36934352]
[1739256331980,0.0454,98507.0,98505.0,0.152275]
[1739256332206,0.003,98507.0,98498.0,0.203049]
[1739256332407,0.003,98507.0,98497.0,0.06377487]
[1739256332579,0.152269,98510.0,98506.0,0.001]
[1739256333023,0.15227,98509.0,98506.0,0.001]
[1739256333372,0.152269,98510.0,98503.0,0.152279]
[1739256333571,0.001,98507.0,98503.0,0.152279]
[1739256333705,0.001,98507.0,98501.0,0.152282]
[1739256334110,0.001,98507.0,98500.0,0.06377487]
[1739256334309,0.001,98507.0,98500.0,0.152283]
[1739256334534,0.152285,98500.0,98492.0,0.152295]
[1739256334711,0.152286,98499.0,98492.0,0.152296]
[1739256335105,0.152282,98501.0,98489.0,0.023]
[1739256335304,0.152282,98501.0,98493.0,0.152293]
[1739256335621,0.152282,98501.0,98494.0,0.152293]
[1739256336540,0.153282,98501.0,98494.0,0.152293]
[1739256336668,0.002,98501.0,98491.0,0.203064]
[1739256336867,0.152284,98500.0,98491.0,0.203064]
[1739256337066,0.152284,98500.0,98493.0,0.152293]
[1739256337517,0.003,98501.0,98490.0,0.06377487]
[1739256337723,0.152302,98488.0,98468.0,0.0803]
[1739256337923,0.152302,98488.0,98467.0,0.09096079]
[1739256338115,0.152302,98488.0,98467.0,0.09197616]
[1739256338318,0.152302,98488.0,98477.0,0.203092]
[1739256338622,0.152302,98488.0,98477.0,0.152318]
[1739256338815,0.152302,98488.0,98472.0,0.203102]
[1739256339133,0.153302,98488.0,98487.0,0.00722386]
[1739256339766,0.153302,98488.0,98487.0,0.01022386]
[1739256342497,0.230502,98488.0,98487.0,0.01022386]
[1739256343520,0.2404762,98488.0,98487.0,0.00722386]
[1739256344119,0.2434762,98488.0,98487.0,0.00722386]
[1739256344741,0.2424762,98488.0,98487.0,0.00022386]
[1739256345129,0.2504762,98488.0,98487.0,0.00122386]
[1739256348577,0.50297985,98488.0,98487.0,0.00122386]
[1739256348845,0.55147985,98488.0,98487.0,0.00122386]
[1739256349822,0.54847985,98488.0,98487.0,0.00122386]
[1739256350318,0.54547985,98488.0,98487.0,0.00122386]
[1739256351581,0.55947985,98488.0,98487.0,0.00222386]
[1739256354261,0.65604084,98488.0,98487.0,0.00222386]
[1739256355316,0.54547985,98488.0,98487.0,0.00122386]
[1739256355535,0.54047985,98488.0,98487.0,0.00122386]
[1739256355662,0.56247985,98488.0,98487.0,0.00222386]
[1739256357267,0.57247985,98488.0,98487.0,0.00222386]
[1739256357498,0.58247985,98488.0,98487.0,0.00222386]
[1739256357702,0.68134084,98488.0,98462.0,0.00022386]
[1739256357904,0.430241,98463.0,98462.0,0.00022386]
[1739256358079,0.53274465,98463.0,98462.0,0.00022386]
[1739256359345,0.53274465,98463.0,98462.0,0.00030459]
[1739256359551,0.53474465,98463.0,98462.0,0.00030459]
[1739256359760,0.6392483,98463.0,98462.0,0.00030459]
[1739256360122,0.6412483,98463.0,98462.0,0.00030459]
[1739256360537,0.6412483,98463.0,98431.0,0.00022386]
[1739256360538,0.43025,98457.0,98456.0,4.5e-07]
[1739256360711,0.43025,98457.0,98431.0,0.00022386]
[1739256360712,0.430261,98450.0,98449.0,0.00018431]
[1739256360913,0.55024465,98450.0,98449.0,0.00018431]
[1739256361114,0.55024465,98450.0,98449.0,0.00062599]
[1739256361368,0.54024465,98450.0,98449.0,0.00062599]
[1739256362309,0.40486465,98450.0,98449.0,0.00062599]
[1739256362710,0.41086465,98450.0,98449.0,0.00062599]
[1739256362922,0.42286465,98450.0,98449.0,0.00062599]
[1739256363690,0.43285981,98450.0,98449.0,0.00062599]
[1739256364466,0.170361,98450.0,98449.0,0.00062599]
[1739256364882,0.018,98450.0,98449.0,0.00062599]
[1739256365293,0.018,98450.0,98449.0,0.18434531]
[1739256365493,0.018,98450.0,98449.0,0.20632964]
[1739256366194,0.012,98450.0,98449.0,0.20632964]
[1739256366395,0.152341,98464.0,98449.0,0.20632964]
[1739256366609,0.152334,98468.0,98459.0,0.152347]
[1739256366814,0.152335,98467.0,98459.0,0.152347]
[1739256367466,0.152337,98466.0,98457.0,0.24946041]
[1739256368273,0.008,98464.0,98457.0,0.24946041]
[1739256368661,0.004,98464.0,98457.0,0.24946041]
[1739256369026,0.160337,98466.0,98457.0,0.09711041]
[1739256369400,0.012,98466.0,98457.0,0.09711041]
[1739256369574,0.012,98466.0,98464.0,0.152339]
[1739256369575,0.004,98466.0,98464.0,0.152339]
[1739256369924,0.004,98466.0,98465.0,0.0802]
[1739256370128,0.152327,98472.0,98465.0,0.0802]
[1739256370536,0.152324,98474.0,98466.0,0.152336]
[1739256371086,0.152328,98472.0,98465.0,0.0802]
[1739256371492,0.004,98466.0,98465.0,0.0802]
[1739256371864,0.01,98466.0,98465.0,0.0802]
[1739256372297,0.152329,98471.0,98465.0,0.0802]
[1739256372815,0.003,98466.0,98465.0,0.0802]
[1739256373404,0.003,98466.0,98462.0,0.152342]
[1739256373604,0.212106,98471.0,98459.0,0.0802]
[1739256373780,0.152331,98470.0,98460.0,0.152346]
[1739256373988,0.152331,98470.0,98459.0,0.28333]
[1739256374917,0.005,98466.0,98459.0,0.28333]
[1739256375213,0.005,98466.0,98462.0,0.152342]
[1739256375448,0.1524387,98469.0,98462.0,0.152342]
[1739256375721,0.0001067,98469.0,98459.0,0.0802]
[1739256376157,0.0001067,98469.0,98463.0,0.152341]
[1739256376721,0.003,98466.0,98463.0,0.152341]
[1739256377149,0.003,98466.0,98459.0,0.38043941]
[1739256377751,0.003,98466.0,98459.0,0.17731041]
[1739256378004,0.0001067,98469.0,98464.0,0.152339]
[1739256378176,0.0001067,98469.0,98462.0,0.152342]
[1739256378399,0.0041067,98469.0,98461.0,0.203126]
[1739256378557,0.0111067,98469.0,98461.0,0.203126]
[1739256378759,0.003,98466.0,98461.0,0.203126]
[1739256379175,0.152333,98468.0,98459.0,0.0802]
[1739256379382,0.15235,98458.0,98456.0,0.3216]
[1739256380256,0.0822,98458.0,98449.0,0.00062599]
[1739256380462,0.152361,98450.0,98449.0,0.00062599]
[1739256381864,0.152361,98450.0,98449.0,0.00162599]
[1739256382776,0.153361,98450.0,98449.0,0.00562599]
[1739256383437,0.152361,98450.0,98449.0,0.00162599]
[1739256383669,0.154361,98450.0,98449.0,0.00162599]
[1739256384235,0.154361,98450.0,98449.0,0.00062599]
[1739256384437,0.155361,98450.0,98449.0,0.00062599]
[1739256386104,0.003,98450.0,98449.0,0.00062599]
[1739256387382,0.155361,98450.0,98449.0,0.00062599]
[1739256388396,0.003,98450.0,98449.0,0.00062599]
[1739256389873,0.155361,98450.0,98449.0,0.00062599]
[1739256398113,0.1554677,98450.0,98449.0,0.00062599]
[1739256404956,0.1534677,98450.0,98449.0,0.00062599]
[1739256405810,0.1544677,98450.0,98449.0,0.00062599]
[1739256407610,0.0021067,98450.0,98449.0,0.23198899]
[1739256407810,0.0021067,98450.0,98449.0,0.67909264]
[1739256408499,0.0011067,98450.0,98449.0,0.67909264]
[1739256408675,0.0001067,98450.0,98449.0,0.68670479]
[1739256408905,0.0001067,98450.0,98449.0,0.68770479]
[1739256409311,0.0001067,98450.0,98449.0,0.40883814]
[1739256409728,0.0001067,98450.0,98449.0,0.56320114]
[1739256412089,0.0001067,98450.0,98449.0,0.55820114]
[1739256413150,0.0001067,98450.0,98449.0,0.48357515]
[1739256414421,0.0001067,98450.0,98449.0,0.33121215]
[1739256415030,0.1524677,98450.0,98449.0,0.33121215]
[1739256415685,0.1524677,98450.0,98449.0,0.32921215]
[1739256416058,0.1524677,98450.0,98449.0,0.33021215]
[1739256416498,0.1524677,98450.0,98449.0,0.32521215]
[1739256416686,0.1524677,98450.0,98449.0,0.001]
[1739256417214,0.1524677,98450.0,98448.0,0.03]
[1739256417416,0.1534677,98450.0,98448.0,0.03]
[1739256417612,0.1544677,98450.0,98448.0,0.03]
[1739256418077,0.1534677,98450.0,98448.0,0.03]
[1739256418271,0.1524677,98450.0,98448.0,0.03]
[1739256418477,0.1544677,98450.0,98448.0,0.03]
[1739256420825,0.0021067,98450.0,98448.0,0.03]
[1739256421015,0.1544677,98450.0,98448.0,0.03]
[1739256421219,0.152363,98449.0,98448.0,0.03]
[1739256421613,0.152363,98449.0,98448.0,0.03022407]
[1739256421867,0.0021067,98450.0,98448.0,0.03022407]
[1739256422130,0.152363,98449.0,98448.0,0.03022407]
[1739256422573,0.152363,98449.0,98448.0,0.03122407]
[1739256423044,0.0011067,98450.0,98448.0,0.03122407]
[1739256423247,0.1534677,98450.0,98448.0,0.03122407]
[1739256423422,0.0001067,98450.0,98448.0,0.03122407]
[1739256423782,0.001,98449.0,98448.0,0.03122407]
[1739256424169,0.001,98449.0,98448.0,0.03022407]
[1739256424574,0.0011067,98450.0,98448.0,0.03022407]
[1739256424787,0.0021067,98450.0,98448.0,0.03022407]
[1739256424984,0.0011067,98450.0,98448.0,0.03022407]
[1739256425517,0.0011067,98450.0,98448.0,0.03122407]
[1739256426546,0.001,98449.0,98448.0,0.03122407]
[1739256426726,0.0001067,98450.0,98448.0,0.03022407]
[1739256427115,0.0011067,98450.0,98448.0,0.03022407]
[1739256427647,0.001,98449.0,98448.0,0.03022407]
[1739256429582,0.0001067,98450.0,98448.0,0.03022407]
[1739256429979,0.001,98449.0,98448.0,0.03122407]
[1739256430650,0.0001067,98450.0,98448.0,0.03022407]
[1739256430855,0.0011067,98450.0,98448.0,0.03783854]
[1739256431011,0.0021067,98450.0,98448.0,0.03783854]
[1739256431420,0.0011067,98450.0,98449.0,0.152363]
[1739256431645,0.0011067,98450.0,98449.0,0.231063]
[1739256432557,0.0011067,98450.0,98449.0,0.23867747]
[1739256432735,0.0011067,98450.0,98449.0,0.28707747]
[1739256432958,0.0001067,98450.0,98449.0,0.28707747]
[1739256433167,0.0011067,98450.0,98449.0,0.28707747]
[1739256433363,0.0021067,98450.0,98449.0,0.28707747]
[1739256433600,0.0021067,98450.0,98449.0,0.72918112]
[1739256433940,0.0001067,98450.0,98449.0,0.72918112]
[1739256434346,0.0011067,98450.0,98449.0,0.73418112]
[1739256434588,0.0011067,98450.0,98449.0,0.73218112]
[1739256434798,0.0001067,98450.0,98449.0,0.72918112]
[1739256434995,0.0011067,98450.0,98449.0,0.73218112]
[1739256436151,0.0011067,98450.0,98449.0,0.73618112]
[1739256436357,0.0001067,98450.0,98449.0,0.73318112]
[1739256436560,0.0001067,98450.0,98449.0,0.73818112]
[1739256436785,0.0011067,98450.0,98449.0,0.74318112]
[1739256443187,0.0011067,98450.0,98449.0,1.27728112]
[1739256445823,0.0011067,98450.0,98449.0,1.27750519]
[1739256450214,0.0011067,98450.0,98449.0,1.15040519]
[1739256454701,0.0011067,98450.0,98449.0,1.23320519]
[1739256455103,0.0011067,98450.0,98449.0,1.28230519]
[1739256458555,0.0011067,98450.0,98449.0,1.19950519]
[1739256462096,0.0011067,98450.0,98449.0,1.15040519]
[1739256466898,0.0011067,98450.0,98449.0,0.61630519]
[1739256470010,0.0011067,98450.0,98449.0,0.46394219]
[1739256470234,0.0011067,98450.0,98449.0,0.33843854]
[1739256470464,0.1534677,98450.0,98449.0,0.33843854]
[1739256471504,0.1524677,98450.0,98449.0,0.33343854]
[1739256471678,0.1534677,98450.0,98449.0,0.33743854]
[1739256472106,0.2331677,98450.0,98449.0,0.32443854]
[1739256472305,0.2331677,98450.0,98449.0,0.31682407]
[1739256472534,0.2331677,98450.0,98449.0,0.32382407]
[1739256472535,0.293074,98450.0,98449.0,0.32382407]
[1739256472743,0.293074,98450.0,98449.0,0.00422407]
[1739256473104,0.293074,98450.0,98449.0,0.00522407]
[1739256474089,0.2813677,98450.0,98449.0,0.00522407]
[1739256476271,0.2813677,98450.0,98449.0,0.00422407]
[1739256476683,0.2823677,98450.0,98449.0,0.00422407]
[1739256477487,0.2813677,98450.0,98449.0,0.00022407]
[1739256477889,0.2823677,98450.0,98449.0,0.00022407]
[1739256478404,0.2803677,98450.0,98449.0,0.00022407]
[1739256478562,0.2923677,98450.0,98449.0,0.00022407]
[1739256479190,0.2973677,98450.0,98449.0,0.00122407]
[1739256479700,0.2923677,98450.0,98449.0,0.00022407]
[1739256479917,0.2973677,98450.0,98449.0,0.00122407]
[1739256481990,0.2853677,98450.0,98449.0,0.00122407]
[1739256482392,0.2963677,98450.0,98449.0,0.00122407]
[1739256482757,0.2913677,98450.0,98449.0,0.00022407]
[1739256482927,0.2963677,98450.0,98449.0,0.00022407]
[1739256483935,0.1440067,98450.0,98449.0,0.00022407]
[1739256484146,0.0161067,98450.0,98449.0,0.00022407]
[1739256484921,0.0051067,98450.0,98449.0,0.00022407]
[1739256485282,0.0091067,98450.0,98449.0,0.00022407]
[1739256485597,0.0111067,98450.0,98449.0,0.00022407]
[1739256485751,0.0021067,98450.0,98449.0,0.00022407]
[1739256485995,0.0001067,98450.0,98449.0,0.00022407]
[1739256486169,0.0021067,98450.0,98449.0,0.00022407]
[1739256486940,0.0001067,98450.0,98449.0,0.00022407]
[1739256487150,0.0041067,98450.0,98449.0,0.00022407]
[1739256488476,0.0061067,98450.0,98449.0,0.00022407]
[1739256488681,0.0041067,98450.0,98449.0,0.00022407]
[1739256489117,0.0041067,98450.0,98449.0,0.15258707]
[1739256489118,0.0061067,98450.0,98449.0,0.15258707]
[1739256489321,0.0061067,98450.0,98449.0,0.00022407]
[1739256490179,0.0021067,98450.0,98449.0,0.00022407]
[1739256490585,0.0021067,98450.0,98449.0,0.00322407]
[1739256490969,0.0021067,98450.0,98449.0,0.00022407]
[1739256491527,0.0011067,98450.0,98449.0,0.00322407]
[1739256491706,0.0011067,98450.0,98449.0,0.00622407]
[1739256492166,0.0011067,98450.0,98449.0,0.44832772]
[1739256492384,0.0011067,98450.0,98449.0,0.53112772]
[1739256492974,0.0011067,98450.0,98449.0,0.52812772]
[1739256493209,0.0001067,98450.0,98449.0,0.52512772]
[1739256493397,0.0001067,98450.0,98449.0,0.52812772]
[1739256493630,0.0011067,98450.0,98449.0,0.53212772]
[1739256494598,0.0001067,98450.0,98449.0,0.68049072]
[1739256494797,0.0001067,98450.0,98449.0,0.68808695]
[1739256495210,0.0001067,98450.0,98449.0,0.68508695]
[1739256495415,0.0011067,98450.0,98449.0,0.68908695]
[1739256495611,0.0011067,98450.0,98449.0,0.69008695]
[1739256496105,0.0011067,98450.0,98449.0,0.68908695]
[1739256496356,0.0011067,98450.0,98449.0,0.69308695]
[1739256496531,0.0011067,98450.0,98449.0,0.68908695]
[1739256496973,0.0011067,98450.0,98449.0,0.68808695]
[1739256496974,0.0001067,98450.0,98449.0,0.68808695]